bitfinex-derivatives/quotes_BTCF0:USTF0_20240917
["timestamp","ask_amount","ask_price","bid_price","bid_amount"]
[1726591751685,0.523988,60975.0,60974.0,0.005]
[1726591752482,0.002,60975.0,60974.0,0.005]
[1726591752687,0.44,60985.0,60975.0,0.081988]
[1726591752688,0.081984,60978.0,60975.0,0.081988]
[1726591752877,0.081984,60978.0,60974.0,0.06931074]
[1726591752878,0.081977,60984.0,60981.0,0.081979]
[1726591753079,0.081977,60984.0,60981.0,0.13037081]
[1726591753080,0.081979,60982.0,60981.0,0.13037081]
[1726591753289,0.081979,60982.0,60981.0,0.081979]
[1726591753583,0.081979,60982.0,60980.0,0.06454914]
[1726591753584,0.08198,60981.0,60980.0,0.06454914]
[1726591753785,0.3608,60990.0,60977.0,0.06454914]
[1726591753786,0.081983,60979.0,60977.0,0.06454914]
[1726591753983,0.081983,60979.0,60978.0,0.06454914]
[1726591754185,0.081988,60975.0,60974.0,0.002]
[1726591754388,0.44,60975.0,60972.0,0.06457665]
[1726591754686,0.081989,60974.0,60973.0,0.06457665]
[1726591755279,0.081993,60971.0,60970.0,0.00246022]
[1726591756287,0.081993,60971.0,60970.0,0.20784902]
[1726591756487,0.081993,60971.0,60970.0,0.12746053]
[1726591756685,0.0024606,60975.0,60974.0,0.081989]
[1726591756880,0.0844486,60975.0,60974.0,0.20698931]
[1726591757077,0.0024606,60975.0,60974.0,0.20698931]
[1726591757380,0.0034606,60975.0,60974.0,0.56778931]
[1726591757583,0.0854486,60975.0,60974.0,0.56778931]
[1726591757886,0.0034606,60975.0,60974.0,0.71991604]
[1726591758078,0.08198,60981.0,60974.0,0.63792704]
[1726591758278,0.08198,60981.0,60980.0,0.53968251]
[1726591758480,0.08198,60981.0,60980.0,0.56778131]
[1726591758684,0.00245994,60987.0,60983.0,0.081976]
[1726591758685,0.081975,60985.0,60983.0,0.081976]
[1726591758888,0.081975,60985.0,60984.0,0.12500031]
[1726591759093,0.16395,60985.0,60984.0,0.12500031]
[1726591759286,0.081976,60984.0,60983.0,0.08078714]
[1726591759485,0.163952,60984.0,60983.0,0.08078714]
[1726591759689,0.163952,60984.0,60983.0,0.20579244]
[1726591759888,0.3618,60985.0,60982.0,0.08081223]
[1726591760090,0.603954,60983.0,60982.0,0.08081223]
[1726591760397,0.163962,60980.0,60979.0,0.08081223]
[1726591760592,0.081993,60971.0,60970.0,0.00246022]
[1726591761291,0.081993,60971.0,60970.0,0.08445522]
[1726591761687,0.00246035,60975.0,60970.0,0.00246022]
[1726591761992,0.081991,60974.0,60973.0,0.081991]
[1726591762195,0.00246035,60975.0,60974.0,0.081989]
[1726591762690,0.08444835,60975.0,60974.0,0.081989]
[1726591763788,0.08544835,60975.0,60974.0,0.090989]
[1726591763997,0.08544835,60975.0,60974.0,0.009]
[1726591764399,0.08544835,60975.0,60974.0,0.005]
[1726591764589,0.60743635,60975.0,60974.0,0.008]
[1726591764795,0.68942435,60975.0,60974.0,0.008]
[1726591765300,1.78142435,60975.0,60974.0,0.008]
[1726591765599,1.78142435,60975.0,60970.0,0.00246022]
[1726591765600,0.163986,60971.0,60970.0,0.00246022]
[1726591765805,1.745979,60971.0,60970.0,0.00246022]
[1726591766795,1.663986,60971.0,60970.0,0.00246022]
[1726591766997,1.663986,60971.0,60970.0,0.00346022]
[1726591767201,1.581993,60971.0,60970.0,0.00346022]
[1726591767394,0.081993,60971.0,60970.0,0.00646022]
[1726591767594,0.00246035,60975.0,60970.0,0.00646022]
[1726591767790,0.00246035,60975.0,60973.0,0.08199]
[1726591767995,0.081991,60974.0,60973.0,0.08199]
[1726591768197,0.00246035,60975.0,60974.0,0.573989]
[1726591768396,0.00246035,60975.0,60974.0,0.13048654]
[1726591768592,0.00245994,60987.0,60983.0,0.081976]
[1726591768593,1.5,60986.0,60983.0,0.081976]
[1726591768804,1.5,60986.0,60982.0,0.3608]
[1726591768805,0.081975,60986.0,60982.0,0.3608]
[1726591768999,0.00245994,60987.0,60982.0,0.3608]
[1726591769000,0.081976,60984.0,60982.0,0.3608]
[1726591769192,0.00245994,60987.0,60978.0,0.42546338]
[1726591769401,0.44,60984.0,60982.0,0.04895311]
[1726591769597,0.081983,60979.0,60978.0,0.3608]
[1726591770401,0.163966,60979.0,60978.0,0.003]
[1726591770804,0.604966,60979.0,60978.0,0.003]
[1726591771104,0.081985,60977.0,60976.0,0.04896644]
[1726591771304,0.001,60979.0,60976.0,0.04896793]
[1726591771508,0.081984,60978.0,60977.0,0.04896793]
[1726591771707,0.001,60979.0,60975.0,0.06527737]
[1726591772006,0.081987,60976.0,60975.0,0.06527737]
[1726591772199,0.081989,60974.0,60973.0,0.3608]
[1726591773510,0.082989,60974.0,60973.0,0.3638]
[1726591774414,0.082989,60974.0,60973.0,0.3648]
[1726591774809,0.082989,60974.0,60973.0,0.446791]
[1726591775111,0.082989,60974.0,60973.0,0.65258996]
[1726591775414,0.082989,60974.0,60973.0,0.446791]
[1726591776617,0.081978,60983.0,60973.0,1.537791]
[1726591776812,0.081978,60983.0,60982.0,0.3608]
[1726591777015,0.00245994,60987.0,60986.0,0.081973]
[1726591777213,0.08443194,60987.0,60986.0,0.081973]
[1726591777412,0.00245994,60987.0,60986.0,0.081973]
[1726591777916,0.08443194,60987.0,60986.0,0.081973]
[1726591778709,0.08443194,60987.0,60982.0,0.3608]
[1726591778710,0.163954,60983.0,60982.0,0.3608]
[1726591779010,0.081989,60974.0,60973.0,0.442789]
[1726591779213,0.081989,60974.0,60973.0,0.45682114]
[1726591779519,0.081989,60974.0,60973.0,0.45682314]
[1726591780108,0.28,60982.0,60973.0,0.37483214]
[1726591780412,0.002,60983.0,60979.0,0.3608]
[1726591780613,0.28,61004.0,60981.0,0.6408]
[1726591780802,0.28,61009.0,60996.0,0.08196]
[1726591781005,1.5,61008.0,60996.0,0.08196]
[1726591781204,1.5,61008.0,60996.0,0.16392]
[1726591781403,0.081939,61012.0,61010.0,0.08194]
[1726591781611,0.01346606,61016.0,60996.0,1.37184]
[1726591781612,0.01346606,61016.0,61005.0,0.3608]
[1726591781820,0.24464493,61013.0,61012.0,0.081938]
[1726591782018,1.5,61015.0,61008.0,0.28]
[1726591782315,0.3608,61029.0,61013.0,0.081936]
[1726591782521,0.3608,61029.0,61016.0,0.081933]
[1726591782522,0.081925,61023.0,61016.0,0.081933]
[1726591782814,1.5,61018.0,61016.0,0.081933]
[1726591783117,1.5,61018.0,61016.0,0.442733]
[1726591784115,0.001,61018.0,61017.0,0.361932]
[1726591784322,0.00245861,61023.0,61017.0,0.49168]
[1726591784520,0.00245861,61023.0,61022.0,0.3608]
[1726591785615,0.00245785,61036.0,61022.0,1.89244]
[1726591785823,0.00245785,61036.0,61031.0,0.442713]
[1726591786317,0.00245785,61036.0,61033.0,0.08191]
[1726591786614,0.00245785,61036.0,61031.0,0.3608]
[1726591786813,0.00245785,61036.0,61034.0,0.081908]
[1726591787015,0.00245785,61036.0,61035.0,0.3608]
[1726591787216,0.00245785,61036.0,61032.0,0.3608]
[1726591787414,0.00245785,61036.0,61033.0,0.081909]
[1726591787616,0.01245785,61036.0,61031.0,0.001]
[1726591787822,0.081911,61032.0,61031.0,0.001]
[1726591788520,0.081909,61034.0,61031.0,0.001]
[1726591788722,0.081909,61034.0,61033.0,0.3608]
[1726591789719,0.091909,61034.0,61033.0,0.3608]
[1726591790719,1.6766236,61034.0,61033.0,0.28010204]
[1726591791113,0.081914,61030.0,61029.0,0.00245767]
[1726591791419,0.081929,61020.0,61012.0,0.21600467]
[1726591791622,0.081929,61020.0,61007.0,0.3608]
[1726591791623,0.59990603,61019.0,61009.0,0.081941]
[1726591791919,0.59990603,61019.0,61007.0,0.3608]
[1726591791920,1.5757146,61018.0,61012.0,0.081937]
[1726591792219,1.5757146,61018.0,61007.0,0.3608]
[1726591792220,0.70104245,61017.0,61008.0,0.081943]
[1726591792420,0.15990603,61016.0,61008.0,0.081943]
[1726591792623,0.26104245,61015.0,61007.0,0.3608]
[1726591792920,0.15993254,61014.0,61008.0,0.3608]
[1726591793221,0.15993254,61013.0,61008.0,0.3608]
[1726591793424,0.081942,61009.0,61008.0,0.32312925]
[1726591793620,0.24187454,61009.0,61008.0,0.007]
[1726591793823,0.15768311,61009.0,61008.0,0.007]
[1726591794324,0.081945,61007.0,61006.0,0.00245878]
[1726591794711,0.442745,61007.0,61006.0,0.00245878]
[1726591795022,0.3608,61007.0,61000.0,0.07597061]
[1726591795223,0.07574111,61006.0,61001.0,0.081953]
[1726591795419,0.07574111,61006.0,61002.0,0.081951]
[1726591795620,0.07574111,61006.0,61005.0,0.081948]
[1726591796127,0.07574111,61006.0,61005.0,1.173708]
[1726591796724,0.22855213,61006.0,61005.0,1.1652106]
[1726591796922,0.22855213,61006.0,61005.0,0.573708]
[1726591797123,0.22955213,61006.0,61005.0,1.173708]
[1726591797426,0.12941571,61006.0,61005.0,1.173708]
[1726591798129,0.002,61006.0,61005.0,1.173708]
[1726591798429,0.002,61006.0,61005.0,1.695656]
[1726591800030,0.002,61006.0,61005.0,1.777604]
[1726591800221,0.00245875,61013.0,61012.0,0.163876]
[1726591800421,0.00245875,61013.0,61012.0,0.442738]
[1726591800633,0.00245875,61013.0,61012.0,0.934458]
[1726591801130,0.00245875,61013.0,61012.0,0.442738]
[1726591801326,0.00245875,61013.0,61012.0,0.573658]
[1726591801531,0.45370415,61013.0,61004.0,0.3608]
[1726591801730,0.45370415,61013.0,60995.0,0.3608]
[1726591801731,0.081952,61002.0,60995.0,0.3608]
[1726591801923,0.081955,61000.0,60998.0,0.081957]
[1726591802226,0.081955,61000.0,60995.0,0.3608]
[1726591802227,0.08196,60996.0,60995.0,0.3608]
[1726591802427,0.0904454,61000.0,60995.0,0.3608]
[1726591802632,0.5304454,61000.0,60995.0,0.3608]
[1726591802826,0.36325913,61002.0,60995.0,0.3608]
[1726591802827,1.5,60999.0,60998.0,0.081957]
[1726591803028,0.00245913,61002.0,61001.0,0.081953]
[1726591803233,0.00245913,61002.0,61001.0,0.442753]
[1726591803427,0.00245913,61002.0,61001.0,1.534553]
[1726591803626,0.00245913,61002.0,61001.0,0.442753]
[1726591803826,0.08441113,61002.0,61001.0,0.442753]
[1726591804022,0.00245913,61002.0,61001.0,0.442753]
[1726591804222,0.00345913,61002.0,61001.0,0.936553]
[1726591804426,0.00345913,61002.0,61001.0,0.444753]
[1726591804640,0.00445913,61002.0,61001.0,0.938553]
[1726591804929,0.17685653,61002.0,61001.0,0.004]
[1726591805131,0.25880853,61002.0,61001.0,0.004]
[1726591805524,0.3383014,61002.0,61001.0,0.004]
[1726591805723,0.3383014,61002.0,60990.0,0.3608]
[1726591805724,0.081967,60991.0,60990.0,0.3608]
[1726591805935,0.521967,60991.0,60990.0,0.3608]
[1726591806134,0.521967,60991.0,60983.0,0.3608]
[1726591806135,0.081976,60984.0,60983.0,0.3608]
[1726591806529,0.081983,60979.0,60978.0,0.3608]
[1726591806826,0.44,60990.0,60981.0,0.081979]
[1726591807028,0.44,60990.0,60978.0,0.3608]
[1726591807231,0.081981,60980.0,60978.0,0.442784]
[1726591807534,0.521983,60979.0,60978.0,0.3608]
[1726591807926,0.6124284,60979.0,60978.0,0.3608]
[1726591808523,0.1724284,60979.0,60978.0,0.3608]
[1726591808730,0.0904454,60979.0,60978.0,0.3608]
[1726591809034,0.1724194,60979.0,60978.0,0.3608]
[1726591809229,0.0904454,60979.0,60978.0,0.3608]
[1726591809437,0.00345989,60984.0,60983.0,0.081969]
[1726591809642,0.00345989,60984.0,60983.0,0.934689]
[1726591809938,0.00245989,60984.0,60983.0,0.442769]
[1726591810135,0.08196,60991.0,60983.0,0.3608]
[1726591810436,0.44,60995.0,60988.0,0.3608]
[1726591810437,0.0904454,60995.0,60988.0,0.3608]
[1726591810629,0.081961,60989.0,60988.0,0.3608]
[1726591810831,0.081955,60994.0,60980.0,0.081973]
[1726591810832,0.44,60990.0,60980.0,0.081973]
[1726591811027,0.44,60989.0,60984.0,0.3608]
[1726591811231,0.44,60989.0,60979.0,0.00245955]
[1726591811232,0.081962,60988.0,60979.0,0.00245955]
[1726591811432,0.081973,60980.0,60979.0,0.00245955]
[1726591812235,0.1724184,60980.0,60979.0,0.00245955]
[1726591813134,0.2543914,60980.0,60979.0,0.00245955]
[1726591813439,0.49932826,60980.0,60979.0,0.00245955]
[1726591813829,0.50032826,60980.0,60979.0,0.00245955]
[1726591814742,0.081977,60977.0,60976.0,0.3608]
[1726591815234,0.2543994,60977.0,60976.0,0.3608]
[1726591816137,0.2543994,60977.0,60971.0,0.00246018]
[1726591816138,0.163968,60972.0,60971.0,0.00246018]
[1726591816437,0.603968,60972.0,60971.0,0.00246018]
[1726591816634,0.93992758,60972.0,60971.0,0.00246018]
[1726591816833,3.53196758,60972.0,60971.0,0.00246018]
[1726591817430,3.53296758,60972.0,60971.0,0.00246018]
[1726591817741,0.164,60960.0,60959.0,0.3608]
[1726591818138,0.2544454,60960.0,60959.0,0.3608]
[1726591818546,0.081987,60970.0,60961.0,0.081998]
[1726591818839,0.082,60960.0,60959.0,0.3608]
[1726591819043,0.083,60960.0,60959.0,0.3608]
[1726591819540,0.1744454,60960.0,60959.0,0.3608]
[1726591820243,0.1744454,60960.0,60955.0,0.00246083]
[1726591820244,0.082005,60956.0,60955.0,0.00246083]
[1726591820442,0.16401,60956.0,60955.0,0.00246083]
[1726591820643,0.082007,60955.0,60954.0,0.3608]
[1726591821139,0.1724524,60955.0,60954.0,0.3608]
[1726591821342,1.6724524,60955.0,60954.0,0.3608]
[1726591821534,2.1124524,60955.0,60954.0,0.3608]
[1726591821729,2.1124524,60955.0,60945.0,0.3608]
[1726591821730,0.082019,60946.0,60945.0,0.3608]
[1726591821928,0.04097216,60946.0,60945.0,0.3608]
[1726591822143,0.082019,60946.0,60945.0,0.3608]
[1726591825146,0.6186181,60946.0,60940.0,0.082026]
[1726591825336,0.6186181,60946.0,60937.0,0.3608]
[1726591825337,0.082028,60939.0,60937.0,0.3608]
[1726591825531,0.001,60942.0,60937.0,0.3608]
[1726591825941,0.002,60946.0,60937.0,0.3608]
[1726591826139,0.002,60946.0,60938.0,0.082029]
[1726591826140,0.001,60942.0,60938.0,0.082029]
[1726591826339,0.082027,60940.0,60937.0,0.3608]
[1726591826534,0.08203,60938.0,60937.0,0.3608]
[1726591827947,0.001,60938.0,60937.0,0.442831]
[1726591828147,0.082017,60948.0,60937.0,0.3608]
[1726591828450,0.32836713,60945.0,60939.0,0.13070473]
[1726591828643,0.32836713,60945.0,60942.0,0.04867673]
[1726591828944,0.1724694,60943.0,60942.0,0.082022]
[1726591829151,0.281,60946.0,60942.0,0.3608]
[1726591829152,0.083019,60946.0,60942.0,0.3608]
[1726591829339,0.001,60946.0,60945.0,0.08202]
[1726591829546,0.001,60946.0,60945.0,0.14750911]
[1726591830451,0.002,60946.0,60945.0,0.08202]
[1726591830652,0.084019,60946.0,60945.0,0.08202]
[1726591830845,0.084019,60946.0,60945.0,0.14697121]
[1726591831156,0.94288331,60946.0,60945.0,0.001]
[1726591831749,0.94288331,60946.0,60932.0,0.0232204]
[1726591831750,0.49228,60945.0,60932.0,0.0232204]
[1726591831955,0.49228,60945.0,60910.0,0.11353566]
[1726591831956,0.082061,60915.0,60914.0,0.0082]
[1726591832252,0.082079,60901.0,60894.0,0.09694322]
[1726591832454,0.362079,60901.0,60900.0,0.40499351]
[1726591832647,0.082079,60901.0,60900.0,0.36326306]
[1726591832845,0.28246332,60905.0,60900.0,0.40499351]
[1726591833252,0.082078,60902.0,60900.0,0.40499351]
[1726591833552,0.28246332,60905.0,60900.0,0.40499351]
[1726591833863,0.28,60910.0,60901.0,0.22206566]
[1726591834048,0.44,60923.0,60907.0,0.3608]
[1726591834251,0.082049,60924.0,60912.0,0.3608]
[1726591834456,0.44,60917.0,60912.0,0.3608]
[1726591834753,0.44,60922.0,60913.0,0.12510743]
[1726591834952,0.082057,60918.0,60914.0,0.12510743]
[1726591835251,0.08451908,60919.0,60917.0,0.3608]
[1726591835477,0.08451908,60919.0,60918.0,0.27309687]
[1726591835478,0.08551908,60919.0,60918.0,0.27309687]
[1726591835773,0.08551908,60919.0,60918.0,0.31482732]
[1726591836160,0.08551908,60919.0,60918.0,0.18973045]
[1726591836363,0.08651908,60919.0,60918.0,0.148]
[1726591836559,0.08651908,60919.0,60918.0,0.18973045]
[1726591837081,0.08551908,60919.0,60918.0,0.18973045]
[1726591837372,0.08551908,60919.0,60918.0,0.19073045]
[1726591837564,0.00246308,60919.0,60918.0,0.19073045]
[1726591837769,0.00346308,60919.0,60918.0,0.19073045]
[1726591838364,0.08551808,60919.0,60918.0,0.19073045]
[1726591839770,0.08551808,60919.0,60918.0,0.149]
[1726591840768,1.58551808,60919.0,60918.0,0.149]
[1726591840961,1.66757308,60919.0,60918.0,0.149]
[1726591841561,1.58551808,60919.0,60918.0,0.149]
[1726591841763,1.66757308,60919.0,60918.0,0.149]
[1726591841975,1.58551808,60919.0,60918.0,0.149]
[1726591842863,0.08551808,60919.0,60918.0,0.149]
[1726591843069,0.08551808,60919.0,60918.0,0.19073045]
[1726591844974,0.08551808,60919.0,60918.0,0.27278745]
[1726591845274,0.08551808,60919.0,60918.0,0.19073045]
[1726591845667,0.16757308,60919.0,60918.0,0.19073045]
[1726591845869,0.08551808,60919.0,60918.0,0.19073045]
[1726591846069,0.16757308,60919.0,60918.0,0.19073045]
[1726591846270,0.16757308,60919.0,60918.0,0.149]
[1726591846470,0.49600344,60919.0,60918.0,0.149]
[1726591846668,0.33189344,60919.0,60918.0,0.149]
[1726591846973,0.42745078,60919.0,60918.0,0.149]
[1726591848071,0.42745078,60919.0,60918.0,0.5098]
[1726591848270,0.42745078,60919.0,60918.0,0.149]
[1726591850278,0.50950578,60919.0,60918.0,0.149]
[1726591850476,0.42745078,60919.0,60918.0,0.149]
[1726591850675,0.50950578,60919.0,60918.0,0.149]
[1726591850976,1.00198578,60919.0,60918.0,0.149]
[1726591851181,1.96278578,60919.0,60918.0,1e-08]
[1726591852084,3.46278578,60919.0,60918.0,1e-08]
[1726591852284,0.246207,60909.0,60905.0,0.3608]
[1726591852478,0.686207,60909.0,60905.0,0.3608]
[1726591852678,0.93094482,60909.0,60905.0,0.3608]
[1726591852885,2.43094482,60909.0,60905.0,0.3608]
[1726591853481,2.34987582,60909.0,60908.0,0.15]
[1726591853979,2.35087582,60909.0,60908.0,0.15]
[1726591854385,2.36434779,60909.0,60908.0,0.15]
[1726591854788,2.28227879,60909.0,60908.0,0.15]
[1726591854986,0.084069,60909.0,60908.0,0.27380045]
[1726591855578,0.002,60909.0,60908.0,0.27380045]
[1726591855994,0.002,60909.0,60908.0,0.12480045]
[1726591856285,0.166138,60909.0,60908.0,0.04273045]
[1726591856882,0.084069,60909.0,60908.0,0.12480045]
[1726591857083,0.166138,60909.0,60908.0,0.04273045]
[1726591857590,0.084069,60909.0,60908.0,0.04273045]
[1726591857982,0.084069,60909.0,60908.0,0.12480045]
[1726591858788,0.084069,60909.0,60908.0,0.04273045]
[1726591859093,0.166138,60909.0,60908.0,0.04273045]
[1726591859687,0.248207,60909.0,60908.0,0.001]
[1726591860093,0.166138,60909.0,60908.0,0.001]
[1726591860391,0.166138,60909.0,60908.0,0.04273045]
[1726591860988,0.248207,60909.0,60908.0,0.001]
[1726591861180,0.49418646,60909.0,60908.0,0.001]
[1726591861387,0.49418646,60909.0,60905.0,0.7238]
[1726591861388,0.57463,60908.0,60900.0,0.3608]
[1726591861694,0.082089,60894.0,60893.0,0.21600467]
[1726591861991,0.082089,60894.0,60893.0,0.04173045]
[1726591862491,0.28,60895.0,60892.0,0.3608]
[1726591862492,0.16418,60893.0,60892.0,0.3608]
[1726591862686,0.16418,60893.0,60892.0,0.40253045]
[1726591863190,1.66418,60893.0,60892.0,0.40253045]
[1726591863801,1.66518,60893.0,60892.0,0.40253045]
[1726591863991,1.58309,60893.0,60892.0,0.40253045]
[1726591864294,1.58409,60893.0,60892.0,0.40253045]
[1726591865391,1.66618,60893.0,60892.0,0.40253045]
[1726591865593,1.58409,60893.0,60892.0,0.40253045]
[1726591866489,1.66618,60893.0,60892.0,0.40253045]
[1726591866793,1.58409,60893.0,60892.0,0.3608]
[1726591868487,0.002,60893.0,60892.0,0.48462245]
[1726591868691,0.00246353,60898.0,60897.0,0.082085]
[1726591868896,0.1434,60914.0,60906.0,0.082072]
[1726591868897,0.1489,60910.0,60906.0,0.082072]
[1726591869088,1.582067,60910.0,60909.0,0.3608]
[1726591869283,1.59546688,60910.0,60909.0,0.3608]
[1726591869490,1.59546688,60910.0,60909.0,0.40253045]
[1726591869788,1.67753388,60910.0,60909.0,0.3608]
[1726591870000,0.082078,60902.0,60901.0,0.002463]
[1726591870293,0.082078,60902.0,60901.0,0.04419345]
[1726591870597,0.362078,60902.0,60901.0,0.04419345]
[1726591870801,0.444156,60902.0,60901.0,0.04419345]
[1726591871183,0.362078,60902.0,60901.0,0.04419345]
[1726591871384,0.363078,60902.0,60901.0,0.04419345]
[1726591871587,0.445156,60902.0,60901.0,0.002463]
[1726591871788,0.164166,60898.0,60897.0,0.3608]
[1726591872199,0.49283797,60898.0,60897.0,0.3608]
[1726591872796,0.32867197,60898.0,60897.0,0.3608]
[1726591873098,0.41075497,60898.0,60897.0,0.3608]
[1726591873298,0.41075497,60898.0,60897.0,0.3618]
[1726591873593,0.41075497,60898.0,60897.0,0.3628]
[1726591874894,0.082083,60898.0,60897.0,0.48661545]
[1726591875492,0.082083,60898.0,60897.0,0.40453045]
[1726591876692,0.28,60902.0,60897.0,0.76533045]
[1726591877000,0.00246306,60906.0,60905.0,0.082074]
[1726591877185,0.00246306,60906.0,60905.0,0.442874]
[1726591877392,0.00246306,60906.0,60905.0,0.48460445]
[1726591877591,0.510853,60921.0,60915.0,0.08206]
[1726591877989,0.24754884,60918.0,60917.0,0.3608]
[1726591878191,0.082053,60921.0,60918.0,0.082057]
[1726591878395,0.1422,60932.0,60918.0,0.082057]
[1726591878396,1e-08,60919.0,60918.0,0.574537]
[1726591878595,1e-08,60919.0,60918.0,1.32276745]
[1726591878898,0.01319741,60940.0,60918.0,1.47898]
[1726591879089,0.28,60947.0,60943.0,0.082023]
[1726591879090,0.00246185,60944.0,60943.0,0.082023]
[1726591879397,0.00246185,60944.0,60943.0,0.04173044]
[1726591880290,0.00846185,60944.0,60943.0,0.04173044]
[1726591880689,0.00846185,60944.0,60943.0,1.13397044]
[1726591880897,0.082002,60959.0,60953.0,0.082009]
[1726591881099,0.081937,61007.0,60943.0,1.13397044]
[1726591881100,0.362004,60957.0,60951.0,0.082012]
[1726591881397,0.31312437,60956.0,60953.0,0.082009]
[1726591881601,0.31312437,60956.0,60951.0,0.04173044]
[1726591881602,0.0673297,60955.0,60951.0,0.04173044]
[1726591881793,0.0673297,60954.0,60951.0,0.0293558]
[1726591881989,0.0673297,60953.0,60951.0,0.0293558]
[1726591882191,0.0673297,60952.0,60951.0,0.0293558]
[1726591883411,0.0703297,60952.0,60951.0,0.0293558]
[1726591883598,0.3513297,60952.0,60951.0,0.0293558]
[1726591884204,0.3513297,60952.0,60947.0,0.3608]
[1726591884403,0.082016,60948.0,60947.0,0.3901558]
[1726591884702,0.22516056,60948.0,60947.0,0.28570443]
[1726591884903,0.08202,60945.0,60944.0,0.3608]
[1726591885096,0.50516456,60945.0,60944.0,0.3901558]
[1726591885404,1.9293497,60945.0,60944.0,0.3901558]
[1726591885600,2.17429256,60945.0,60944.0,0.3608]
[1726591885799,2.25631256,60945.0,60944.0,0.3608]
[1726591886211,1.81227256,60945.0,60944.0,1.5644178]
[1726591886391,1.5673297,60945.0,60944.0,0.4721778]
[1726591886594,1.5,60945.0,60944.0,0.4721778]
[1726591886794,1.58202,60945.0,60944.0,0.3901558]
[1726591887301,0.002,60945.0,60944.0,0.4811778]
[1726591887503,0.0693297,60945.0,60944.0,1.46097389]
[1726591887695,0.00246138,60952.0,60950.0,0.082012]
[1726591888001,0.00246138,60952.0,60951.0,0.082012]
[1726591889200,0.00546138,60952.0,60951.0,0.082012]
[1726591890319,0.00646138,60952.0,60951.0,0.092012]
[1726591890998,0.08847238,60952.0,60951.0,0.092012]
[1726591891197,1.58847238,60952.0,60951.0,0.092012]
[1726591891597,1.50646138,60952.0,60951.0,0.092012]
[1726591891813,1.50446138,60952.0,60951.0,0.101012]
[1726591893619,1.502,60952.0,60951.0,0.101012]
[1726591894013,1.584011,60952.0,60951.0,0.101012]
[1726591894218,1.666022,60952.0,60951.0,0.019]
[1726591894423,1.9121068,60952.0,60951.0,0.019]
[1726591895029,2.2729068,60952.0,60951.0,0.019]
[1726591895207,2.28619823,60952.0,60951.0,0.019]
[1726591895810,0.16404,60945.0,60944.0,0.24835609]
[1726591896011,0.44404,60945.0,60944.0,0.24835609]
[1726591896519,1.94404,60945.0,60944.0,0.24835609]
[1726591896713,1.94404,60945.0,60939.0,0.00246137]
[1726591896714,0.164054,60940.0,60939.0,0.00246137]
[1726591897017,0.164054,60940.0,60919.0,0.8998]
[1726591897018,0.08205,60923.0,60922.0,0.00246177]
[1726591897218,0.5249,60923.0,60922.0,0.00246177]
[1726591897521,2.0249,60923.0,60922.0,0.00246177]
[1726591897718,2.27233908,60923.0,60922.0,0.00246177]
[1726591897916,0.082065,60912.0,60911.0,0.00246251]
[1726591898918,0.00246259,60916.0,60911.0,0.00246251]
[1726591899143,0.00246259,60916.0,60914.0,0.3608]
[1726591899539,0.082061,60915.0,60914.0,0.3608]
[1726591901242,0.444122,60915.0,60914.0,0.3608]
[1726591901447,0.444122,60915.0,60906.0,0.00246281]
[1726591901448,0.082067,60910.0,60909.0,0.3608]
[1726591902039,0.444134,60910.0,60909.0,0.3608]
[1726591902237,0.68911797,60910.0,60909.0,0.3608]
[1726591902850,0.68911797,60910.0,60909.0,0.001]
[1726591903243,0.164142,60907.0,60906.0,0.00246281]
[1726591903442,0.524942,60907.0,60906.0,0.00246281]
[1726591903655,0.77254569,60907.0,60906.0,0.00246281]
[1726591903851,2.27254569,60907.0,60906.0,0.00246281]
[1726591904038,1.82967469,60907.0,60906.0,0.00246281]
[1726591904843,1.582071,60907.0,60906.0,0.00246281]
[1726591905049,0.082069,60909.0,60906.0,0.08453581]
[1726591905349,0.004,60907.0,60906.0,0.08453581]
[1726591905854,0.008,60907.0,60906.0,0.08453581]
[1726591906248,0.004,60907.0,60906.0,1.53789581]
[1726591906452,0.00246259,60916.0,60915.0,0.082061]
[1726591906843,0.00246259,60916.0,60915.0,1.174541]
[1726591907253,0.1473,60930.0,60915.0,1.45328]
[1726591907551,0.08204,60930.0,60922.0,0.3608]
[1726591907850,0.3608,60943.0,60928.0,0.3608]
[1726591907851,0.082037,60933.0,60928.0,0.3608]
[1726591908158,0.082032,60937.0,60931.0,0.082039]
[1726591908355,0.082033,60936.0,60931.0,0.082039]
[1726591908663,0.082034,60935.0,60931.0,0.082039]
[1726591908846,0.082036,60934.0,60931.0,0.082039]
[1726591909047,0.442836,60934.0,60927.0,0.082044]
[1726591909347,0.082043,60928.0,60922.0,0.3608]
[1726591909654,0.28,60925.0,60923.0,0.08205]
[1726591909953,0.24629527,60931.0,60923.0,0.08205]
[1726591909954,0.082046,60926.0,60923.0,0.08205]
[1726591910153,0.082046,60926.0,60924.0,0.082048]
[1726591910364,0.28,60931.0,60925.0,0.082047]
[1726591910551,0.082042,60929.0,60925.0,0.082047]
[1726591910752,1.50084,60930.0,60925.0,0.082047]
[1726591910951,1.5,60930.0,60925.0,0.082047]
[1726591911149,1.5,60930.0,60922.0,0.3608]
[1726591911348,0.28,60931.0,60922.0,0.3608]
[1726591911349,0.082043,60929.0,60922.0,0.3648]
[1726591911549,0.083043,60928.0,60927.0,0.3608]
[1726591911944,0.08205,60923.0,60922.0,0.3688]
[1726591912151,0.08205,60923.0,60922.0,0.008]
[1726591912152,0.8049,60923.0,60922.0,0.008]
[1726591912354,1.05191156,60923.0,60922.0,0.007]
[1726591912546,2.55191156,60923.0,60922.0,0.007]
[1726591913459,2.27191156,60923.0,60922.0,0.007]
[1726591913656,2.55191156,60923.0,60922.0,0.003]
[1726591914359,2.55391156,60923.0,60922.0,0.003]
[1726591914859,0.3608,60923.0,60918.0,0.0024621]
[1726591915067,0.44285,60923.0,60922.0,0.082051]
[1726591915353,0.44285,60923.0,60918.0,0.0024621]
[1726591915555,0.082055,60919.0,60918.0,0.0024621]
[1726591915764,0.082055,60919.0,60918.0,0.0845191]